fUSD/lending_fUSD_20260108
["ID","MTS","AMOUNT","RATE_DAILY","PERIOD"]
[401087257,1767913843850,-972.0,0.00017315,2]
[401087259,1767913843859,-433.0,0.00017318,2]
[401087261,1767913843868,-355.0,0.00017325,2]
[401087264,1767913843878,-972.0,0.00017369,2]
[401087265,1767913843887,-2860.0,0.00017391,2]
[401087267,1767913843896,-1000.0,0.000174,2]
[401087270,1767913843906,-972.0,0.00017424,2]
[401087272,1767913843916,-173.68,0.00017461,2]
[401087274,1767913843924,-972.0,0.00017479,2]
[401087275,1767913843934,-2860.0,0.00017487,2]
[401087277,1767913843944,-972.0,0.00017534,2]
[401087279,1767913843953,-2195.8,0.00017534,2]
[401087281,1767913843963,-972.0,0.00017588,2]
[401087283,1767913843973,-187.7,0.00017593,2]
[401087285,1767913843982,-7515.29197043,0.0001764,2]
[401087287,1767913843991,-992.45863703,0.00017643,2]
[401087289,1767913844000,-278.47145147,0.00017647,2]
[401087291,1767913844009,-574.12855637,0.00017647,2]
[401087293,1767913844019,-151.0,0.00017647,2]
[401087296,1767913844028,-1000.0,0.0001765,2]
[401087298,1767913844039,-1000.0,0.00017673,2]
[401087300,1767913844048,-1000.0,0.000177,2]
[401087302,1767913844057,-1000.0,0.00017709,2]
[401087303,1767913844066,-151.0,0.00017773,2]
[401087305,1767913844075,-500.0,0.00017775,2]
[401087307,1767913844085,-500.0,0.00017775,2]
[401087309,1767913844093,-622.57091342,0.00017775,2]
[401087311,1767913844102,-500.0,0.00017775,2]
[401087313,1767913844111,-500.0,0.00017775,2]
[401087315,1767913844120,-500.0,0.00017775,2]
[401087317,1767913844129,-500.0,0.00017775,2]
[401087319,1767913844139,-500.0,0.00017775,2]
[401087321,1767913844148,-500.0,0.00017775,2]
[401087323,1767913844158,-500.0,0.00017775,2]
[401087325,1767913844167,-500.0,0.00017775,2]
[401087327,1767913844176,-500.0,0.00017775,2]
[401087329,1767913844185,-500.0,0.00017775,2]
[401087331,1767913844195,-500.0,0.00017775,2]
[401087333,1767913844203,-500.0,0.00017775,2]
[401087335,1767913844214,-500.0,0.00017775,2]
[401087337,1767913844223,-500.0,0.00017775,2]
[401087339,1767913844232,-500.0,0.00017775,2]
[401087341,1767913844241,-500.0,0.00017775,2]
[401087343,1767913844250,-500.0,0.00017775,2]
[401087345,1767913844259,-500.0,0.00017775,2]
[401087347,1767913844268,-500.0,0.00017775,2]
[401087349,1767913844277,-500.0,0.00017775,2]
[401087351,1767913844287,-435.97578005,0.00017775,2]
[401087353,1767913844295,-500.0,0.00017775,2]
[401087355,1767913844305,-500.0,0.00017775,2]
[401087357,1767913844314,-500.06843701,0.00017775,2]
[401087359,1767913844323,-500.0,0.00017775,2]
[401087361,1767913844333,-500.0,0.00017775,2]
[401087363,1767913844342,-500.0,0.00017775,2]
[401087365,1767913844352,-500.0,0.00017775,2]
[401087367,1767913844361,-500.0,0.00017775,2]
[401087369,1767913844370,-500.0,0.00017775,2]
[401087371,1767913844379,-330.37464563,0.00017775,2]
[401087373,1767913844388,-758503.8606367,0.00017776,2]
[401087375,1767913844397,-4328.1052395,0.00017776,2]
[401087377,1767913844406,-105832.003272,0.00017776,2]
[401087379,1767913844415,-500.0,0.00017776,2]
[401087381,1767913844424,-500.0,0.00017776,2]
[401087383,1767913844432,-500.0,0.00017776,2]
[401087385,1767913844443,-2860.0,0.00017777,2]
[401087387,1767913844452,-2000.0,0.000178,2]
[401087389,1767913844462,-2195.8,0.00017808,2]
[401087391,1767913844471,-804.28976,0.0001782,2]
[401087393,1767913844480,-804.28976,0.0001782,2]
[401087395,1767913844489,-1211.216,0.0001783,2]
[401087397,1767913844498,-804.28977,0.0001783,2]
[401087399,1767913844508,-541.22505,0.00017837,2]
[401087401,1767913844517,-500.0,0.00017846,2]
[401087403,1767913844526,-500.0,0.00017846,2]
[401087405,1767913844535,-502.25127096,0.00017846,2]
[401087407,1767913844544,-2000.0,0.00017856,2]
[401087410,1767913844557,-200.0,0.00017856,2]
[401087412,1767913844567,-804.28976,0.0001786,2]
[401087414,1767913844576,-804.28977,0.0001788,2]
[401087416,1767913844587,-500.0,0.00017899,2]
[401087417,1767913844597,-500.0,0.00017899,2]
[401087420,1767913844607,-7642.75239593,0.000179,3]
[401087422,1767913844616,-10000.0,0.000179,2]
[401087424,1767913844625,-158.69212054,0.000179,2]
[401087426,1767913844634,-9301.34223172,0.000179,2]
[401087428,1767913844643,-8810.0767951,0.000179,2]
[401087430,1767913844652,-13825.0,0.000179,2]
[401087432,1767913844661,-804.28976,0.0001791,2]
[401087434,1767913844670,-2860.0,0.00017937,2]
[401087436,1767913844679,-500.0,0.00017973,2]
[401087438,1767913844688,-235.35795411,0.00017973,2]
[401087440,1767913844697,-500.0,0.00017973,2]
[401087442,1767913844707,-500.0,0.00017973,2]
[401087444,1767913844716,-500.0,0.00017973,2]
[401087446,1767913844725,-500.75581913,0.00017973,2]
[401087448,1767913844734,-500.0,0.00017973,2]
[401087450,1767913844743,-500.0,0.00017973,2]
[401087452,1767913844752,-500.0,0.00017973,2]
[401087454,1767913844761,-504.24318867,0.00017973,2]
[401087456,1767913844771,-500.0,0.00017973,2]
[401087457,1767913844780,-500.0,0.00017973,2]
[401087459,1767913844789,-500.0,0.00017973,2]
[401087462,1767913844799,-500.0,0.00017973,2]
[401087464,1767913844808,-500.0,0.00017973,2]
[401087466,1767913844818,-504.86489793,0.00017973,2]
[401087468,1767913844827,-500.0,0.00017973,2]
[401087470,1767913844836,-500.0,0.00017973,2]
[401087471,1767913844845,-500.0,0.00017973,2]
[401087473,1767913844855,-569.64539879,0.00017973,2]
[401087475,1767913844864,-500.0,0.00017973,2]
[401087478,1767913844873,-500.0,0.00017973,2]
[401087479,1767913844883,-500.0,0.00017973,2]
[401087481,1767913844892,-150.0,0.00017973,2]
[401087484,1767913844902,-151.0,0.00017997,2]
[401087486,1767913844911,-212.74801652,0.00017999,2]
[401087488,1767913844920,-1006.1979,0.00017999,2]
[401087490,1767913844929,-300.0,0.00017999,2]
[401087491,1767913844938,-300.0,0.00017999,2]
[401087493,1767913844947,-666.0,0.00017999,2]
[401087496,1767913844957,-300.0,0.00017999,2]
[401087498,1767913844967,-363.73176274,0.00017999,2]
[401087500,1767913844976,-222.98699471,0.00017999,2]
[401087502,1767913844985,-300.0,0.00017999,2]
[401087504,1767913844994,-666.0,0.00017999,2]
[401087505,1767913845003,-300.0,0.00017999,2]
[401087508,1767913845012,-500.0,0.00017999,2]
[401087509,1767913845021,-500.0,0.00017999,2]
[401087511,1767913845030,-500.0,0.00017999,2]
[401087514,1767913845039,-500.0,0.00017999,2]
[401087515,1767913845048,-500.0,0.00017999,2]
[401087518,1767913845058,-500.0,0.00017999,2]
[401087520,1767913845067,-525.57552704,0.00017999,2]
[401087522,1767913845076,-500.0,0.00017999,2]
[401087524,1767913845085,-500.0,0.00017999,2]
[401087526,1767913845094,-500.0,0.00017999,2]
[401087528,1767913845104,-500.0,0.00017999,2]
[401087530,1767913845114,-500.0,0.00017999,2]
[401087532,1767913845123,-500.0,0.00017999,2]
[401087534,1767913845132,-500.0,0.00017999,2]
[401087536,1767913845141,-500.0,0.00017999,2]
[401087538,1767913845150,-500.0,0.00017999,2]
[401087540,1767913845159,-500.0,0.00017999,2]
[401087542,1767913845169,-500.0,0.00017999,2]
[401087544,1767913845178,-195.61440438,0.00017999,2]
[401087546,1767913845187,-300.0,0.00017999,2]
[401087548,1767913845197,-666.0,0.00017999,2]
[401087550,1767913845206,-300.0,0.00017999,2]
[401087552,1767913845218,-500.0,0.00017999,2]
[401087554,1767913845228,-500.0,0.00017999,2]
[401087556,1767913845237,-1000.0,0.00018,2]
[401087558,1767913845246,-836.47750939,0.00018,2]
[401087560,1767913845257,-71063.27935926,0.00018,2]
[401087563,1767913845267,-2315089.80806659,0.00018,2]
[401087634,1767913846342,-1.7e-07,0.00018,2]
[401087635,1767913848270,-1000.0,0.00010921,2]
[401087636,1767913848281,-565.0,0.00017266,2]
[401087637,1767913848292,-1254.31848434,0.0001764,2]
[401087638,1767913850815,-280.99446595,0.0001092,2]
[401087639,1767913850825,-501.95388957,0.0001092,2]
[401087640,1767913850834,-500.0,0.0001092,2]
[401087641,1767913850843,-500.0,0.00016438,2]
[401087642,1767913850853,-500.0,0.00016438,2]
[401087643,1767913850863,-500.0,0.00016438,2]
[401087644,1767913850872,-500.0,0.00016438,2]
[401087645,1767913850881,-500.0,0.00016438,2]
[401087646,1767913850890,-500.0,0.00016438,2]
[401087647,1767913850899,-500.0,0.00016438,2]
[401087648,1767913850909,-256.46341436,0.00016438,2]
[401087650,1767914168427,1976.450204,7.945e-05,2]
[401087651,1767914409587,-500.0,0.00010619,2]
[401087652,1767914409610,-43.1511784,0.00010619,2]
[401087653,1767914469544,-193.8488216,0.00010619,2]
[401087654,1767914469566,-84.91506634,0.00010644,2]
[401087655,1767914626553,2113.75,0.00010414,2]
[401087657,1767914797124,-168.81720817,0.00010644,2]
[401087658,1767914797146,-18.14310762,0.00010669,2]
[401087660,1767914888220,208.81,0.00010331,2]
[401087672,1767915031999,-280.91669828,0.00010678,2]
[401087673,1767915032009,-237.0,0.00010678,2]
[401087674,1767915032019,-214.51,0.00010686,2]
[401087675,1767915032029,-222.18749106,0.00010721,2]
[401087676,1767915032039,-1172.76568573,0.00010799,2]
[401087677,1767915032078,-16732.1648296,0.00010799,2]
[401087678,1767915032089,-10325.20792168,0.00010799,2]
[401087679,1767915032104,-10957.99854066,0.00010799,2]
[401087681,1767915032143,-879.45743612,0.00010799,2]
[401087684,1767915032154,-2286.90336051,0.00010799,2]
[401087686,1767915032165,-4057.68000001,0.00010799,2]
[401087688,1767915032176,-931.037,0.00010799,2]
[401087726,1767915038349,-3833.96866286,0.00010799,2]
[401087729,1767915038361,-3379.8,0.00010799,2]
[401087731,1767915038373,-140408.45886317,0.00010799,2]
[401087785,1767915039071,-6075.94110169,0.00010799,2]
[401087919,1767915041380,-500.0,0.00010798,2]
[401087920,1767915041390,-317.88588924,0.00010798,2]
[401087921,1767915041401,-287.23258977,0.00010798,2]
[401087922,1767915041410,-500.0,0.00010798,2]
[401087923,1767915041419,-192.96015378,0.00010798,2]
[401087924,1767915041429,-798958.61659797,0.00010799,2]
[401087925,1767915041438,-2500.0,0.00010806,2]
[401087926,1767915041447,-158.69212057,0.00010821,2]
[401087927,1767915041456,-210.60603885,0.00010821,2]
[401087928,1767915041465,-1783.89937804,0.00010891,2]
[401087929,1767915041474,-1200.0,0.00010896,2]
[401087930,1767915041483,-1200.0,0.00010897,2]
[401087931,1767915041493,-150.0,0.00010898,2]
[401087932,1767915041502,-151.0,0.00010898,2]
[401087933,1767915041511,-2502.08,0.00010899,2]
[401087934,1767915041519,-9999.99,0.00010899,2]
[401087935,1767915041529,-200.0,0.00010899,2]
[401087936,1767915041538,-200.0,0.00010899,2]
[401087937,1767915041547,-254.480222,0.00010899,2]
[401087938,1767915041556,-200.0,0.00010899,2]
[401087939,1767915041565,-500.0,0.00010899,2]
[401087940,1767915041575,-151.0,0.00010899,2]
[401087941,1767915041584,-151.0,0.00010899,2]
[401087942,1767915041593,-165.27459927,0.000109,2]
[401087943,1767915041603,-324.9765641,0.000109,2]
[401087944,1767915041612,-1432.752,0.00010902,2]
[401087945,1767915041621,-159.882,0.00010902,2]
[401087946,1767915041631,-733.9,0.00010903,2]
[401087947,1767915041641,-1000.0,0.00010921,2]
[401087948,1767915041650,-200.0,0.00010931,2]
[401087949,1767915041659,-150.0,0.00010959,2]
[401087950,1767915041668,-93450.4692495,0.00011,2]
[401087951,1767915041677,-12991.1694938,0.00011099,2]
[401087952,1767915041686,-733.9,0.00011177,2]
[401087953,1767915041695,-20121.92,0.00011281,2]
[401087954,1767915041704,-5907.01,0.00011281,2]
[401087955,1767915041713,-150.99,0.00011281,2]
[401087956,1767915041722,-299.99,0.00011281,2]
[401087957,1767915041731,-999.99,0.00011281,2]
[401087958,1767915041740,-19999.99,0.00011281,2]
[401087959,1767915041749,-9999.99,0.00011281,2]
[401087960,1767915041759,-150.99,0.00011281,2]
[401087961,1767915041768,-14141.06,0.00011281,2]
[401087962,1767915041778,-200.0,0.00011447,2]
[401087963,1767915041787,-500.0,0.00011447,2]
[401087964,1767915041796,-733.9,0.00011451,2]
[401087965,1767915041805,-12991.16949377,0.00011608,2]
[401087966,1767915041814,-300.0,0.00011708,2]
[401087967,1767915041823,-250.0,0.00011708,2]
[401087968,1767915041833,-195.0,0.00011708,2]
[401087969,1767915041842,-733.9,0.00011725,2]
[401087970,1767915041851,-166.66,0.00011735,2]
[401087971,1767915041860,-185.90849551,0.00011736,2]
[401087972,1767915041870,-250.0,0.00011736,2]
[401087973,1767915041879,-195.0,0.00011745,2]
[401087974,1767915041888,-300.0,0.00011745,2]
[401087975,1767915041898,-317.74732338,0.00011745,2]
[401087976,1767915041907,-449.33291984,0.00011745,2]
[401087977,1767915041917,-195.0,0.00011745,2]
[401087978,1767915041926,-300.0,0.00011745,2]
[401087979,1767915041935,-300.0,0.00011745,2]
[401087980,1767915041944,-300.0,0.00011745,2]
[401087981,1767915041954,-6807.16,0.00011781,2]
[401087982,1767915041963,-275.45766541,0.00011832,2]
[401087983,1767915041972,-255.0,0.00011945,2]
[401087984,1767915041981,-1200.0,0.00011976,2]
[401087985,1767915041990,-1680.0,0.00011986,2]
[401087986,1767915041999,-733.9,0.00011999,2]
[401087987,1767915042008,-158.69212054,0.00012001,2]
[401087988,1767915042017,-166.66,0.00012122,2]
[401087989,1767915042026,-733.91009015,0.00012273,2]
[401087990,1767915042040,-13020.61450807,0.00012394,2]
[401087991,1767915042050,-12991.16949377,0.00012394,2]
[401087992,1767915042060,-2502.15,0.000124,2]
[401087993,1767915042069,-210.60603885,0.0001241,2]
[401087994,1767915042081,-166.66,0.00012509,2]
[401087995,1767915042091,-275.45766541,0.00012844,2]
[401087996,1767915042101,-166.66,0.00012897,2]
[401087997,1767915042115,-189.74890307,0.00012919,2]
[401087998,1767915042124,-248.94825256,0.00012919,2]
[401087999,1767915042134,-433.0,0.00013089,2]
[401088000,1767915042143,-13020.61450807,0.00013181,2]
[401088001,1767915042152,-158.69212054,0.00013181,2]
[401088002,1767915042161,-12991.16949377,0.00013181,2]
[401088003,1767915042171,-2351.0,0.00013184,2]
[401088004,1767915042180,-166.66,0.00013284,2]
[401088005,1767915042189,-151.0,0.00013464,2]
[401088006,1767915042198,-151.0,0.00013464,2]
[401088007,1767915042208,-151.0,0.00013486,2]
[401088008,1767915042217,-151.0,0.00013486,2]
[401088009,1767915042226,-151.0,0.00013487,2]
[401088010,1767915042235,-151.0,0.00013487,2]
[401088011,1767915042245,-289.11476837,0.00013638,2]
[401088012,1767915042255,-336.25,0.00013663,2]
[401088013,1767915042264,-166.66,0.00013672,2]
[401088014,1767915042273,-500.0,0.00013698,2]
[401088015,1767915042283,-500.0,0.00013698,2]
[401088016,1767915042293,-525.57552704,0.00013698,2]
[401088017,1767915042302,-500.0,0.00013698,2]
[401088018,1767915042315,-500.0,0.00013698,2]
[401088019,1767915042325,-500.0,0.00013698,2]
[401088020,1767915042334,-500.0,0.00013698,2]
[401088021,1767915042344,-500.0,0.00013698,2]
[401088022,1767915042354,-397.40808875,0.00013698,2]
[401088023,1767915042363,-500.0,0.00013698,2]
[401088024,1767915042372,-500.0,0.00013698,2]
[401088025,1767915042381,-500.0,0.00013698,2]
[401088026,1767915042390,-622.57091342,0.00013698,2]
[401088027,1767915042401,-500.0,0.00013698,2]
[401088028,1767915042410,-500.0,0.00013698,2]
[401088029,1767915042420,-500.0,0.00013698,2]
[401088030,1767915042429,-500.0,0.00013698,2]
[401088031,1767915042438,-500.0,0.00013698,2]
[401088032,1767915042447,-500.0,0.00013698,2]
[401088033,1767915042456,-500.0,0.00013698,2]
[401088034,1767915042465,-500.0,0.00013698,2]
[401088035,1767915042474,-500.0,0.00013698,2]
[401088036,1767915042483,-500.0,0.00013698,2]
[401088037,1767915042493,-500.0,0.00013698,2]
[401088038,1767915042502,-500.0,0.00013698,2]
[401088039,1767915042514,-500.0,0.00013698,2]
[401088040,1767915042522,-483.79003433,0.00013698,2]
[401088041,1767915042532,-500.0,0.00013698,2]
[401088042,1767915042541,-500.0,0.00013698,2]
[401088043,1767915042550,-435.97578005,0.00013698,2]
[401088044,1767915042559,-500.0,0.00013698,2]
[401088045,1767915042568,-500.0,0.00013698,2]
[401088046,1767915042578,-500.0,0.00013698,2]
[401088047,1767915042589,-500.0,0.00013698,2]
[401088048,1767915042598,-500.0,0.00013698,2]
[401088049,1767915042608,-502.7457157,0.00013698,2]
[401088050,1767915042617,-500.0,0.00013698,2]
[401088051,1767915042626,-500.0,0.00013698,2]
[401088052,1767915042635,-500.0,0.00013698,2]
[401088053,1767915042645,-500.06843701,0.00013698,2]
[401088054,1767915042654,-500.0,0.00013698,2]
[401088055,1767915042664,-500.0,0.00013698,2]
[401088056,1767915042674,-500.0,0.00013698,2]
[401088057,1767915042683,-500.0,0.00013698,2]
[401088058,1767915042692,-500.0,0.00013698,2]
[401088059,1767915042702,-500.0,0.00013698,2]
[401088060,1767915042713,-500.0,0.00013698,2]
[401088061,1767915042723,-500.0,0.00013698,2]
[401088062,1767915042732,-500.0,0.00013698,2]
[401088063,1767915042741,-500.0,0.00013698,2]
[401088064,1767915042751,-500.0,0.00013698,2]
[401088065,1767915042760,-500.0,0.00013698,2]
[401088066,1767915042769,-500.0,0.00013698,2]
[401088067,1767915042779,-500.0,0.00013698,2]
[401088068,1767915042788,-500.0,0.00013698,2]
[401088070,1767915042797,-500.0,0.00013698,2]
[401088071,1767915042806,-500.0,0.00013698,2]
[401088072,1767915042815,-500.0,0.00013698,2]
[401088073,1767915042825,-500.0,0.00013698,2]
[401088074,1767915042834,-512.38385976,0.00013698,2]
[401088075,1767915042843,-275.45766541,0.00013855,2]
[401088076,1767915042852,-13020.61450807,0.00013967,2]
[401088077,1767915042862,-12991.16949377,0.00013967,2]
[401088078,1767915042874,-998.13686081,0.00014,2]
[401088079,1767915042883,-250.0,0.00014109,2]
[401088080,1767915042893,-736.0,0.00014353,2]
[401088081,1767915042903,-158.69212054,0.00014361,2]
[401088082,1767915042916,-10300.04320394,0.0001439,2]
[401088083,1767915042926,-3292.0,0.00014503,2]
[401088084,1767915042935,-13020.61450807,0.00014754,2]
[401088085,1767915042944,-12991.16949377,0.00014754,2]
[401088086,1767915042953,-500.0,0.00014763,2]
[401088087,1767915042963,-453.03832283,0.00014763,2]
[401088088,1767915042972,-500.0,0.00014763,2]
[401088089,1767915042981,-500.0,0.00014763,2]
[401088090,1767915042990,-500.0,0.00014763,2]
[401088091,1767915042999,-500.0,0.00014763,2]
[401088092,1767915043008,-500.0,0.00014763,2]
[401088093,1767915043018,-500.0,0.00014763,2]
[401088094,1767915043027,-500.0,0.00014763,2]
[401088095,1767915043038,-165.70843486,0.00014763,2]
[401088096,1767915043047,-500.0,0.00014763,2]
[401088097,1767915043056,-500.0,0.00014763,2]
[401088098,1767915043065,-275.45766541,0.00014866,2]
[401088099,1767915043075,-247.17817809,0.000149,2]
[401088100,1767915043084,-5014.92,0.00014999,2]
[401088101,1767915043104,-2045.26348643,0.00015,2]
[401088102,1767915043116,-1207.91998562,0.00015,2]
[401088103,1767915043126,-16553.60939929,0.00015,2]
[401088104,1767915043141,-22966.4777501,0.00015,2]
[401088105,1767915043150,-507.02410886,0.000154,2]
[401088106,1767915043160,-12712.44,0.00015462,2]
[401088107,1767915043170,-158.69212054,0.0001554,2]
[401088108,1767915043179,-13020.61450807,0.0001554,2]
[401088109,1767915043190,-12991.16949377,0.0001554,2]
[401088110,1767915043200,-1252.0,0.00015727,2]
[401088111,1767915043210,-1852.42,0.0001579,2]
[401088112,1767915043220,-275.45766541,0.00015877,2]
[401088113,1767915043231,-4609.0,0.00015953,2]
[401088114,1767915043241,-150.0,0.00015956,2]
[401088115,1767915043254,-11716.16929184,0.00016,2]
[401088116,1767915043263,-80755.69031789,0.000161,2]
[401088117,1767915043273,-9999.99,0.00016116,2]
[401088118,1767915043282,-195.61440438,0.00016132,2]
[401088119,1767915043291,-500.0,0.00016132,2]
[401088120,1767915043301,-50739.56790808,0.000162,5]
[401088121,1767915043310,-13020.61450807,0.00016327,2]
[401088122,1767915043319,-12991.16949377,0.00016327,2]
[401088123,1767915043330,-504.0,0.00016329,2]
[401088124,1767915043340,-200.0,0.0001634,2]
[401088125,1767915043350,-150.0,0.00016383,2]
[401088126,1767915043359,-500.0,0.00016383,2]
[401088127,1767915043369,-150.0,0.00016383,2]
[401088128,1767915043378,-150.0,0.00016383,2]
[401088129,1767915043388,-150.0,0.00016383,2]
[401088130,1767915043397,-500.0,0.00016383,2]
[401088131,1767915043406,-500.0,0.00016383,2]
[401088132,1767915043416,-500.0,0.00016383,2]
[401088133,1767915043426,-150.0,0.00016383,2]
[401088134,1767915043436,-150.0,0.00016383,2]
[401088135,1767915043445,-250.0,0.00016383,2]
[401088136,1767915043455,-972.0,0.00016383,2]
[401088137,1767915043464,-500.0,0.00016438,2]
[401088138,1767915043473,-190.19225777,0.00016438,2]
[401088139,1767915043483,-500.0,0.00016438,2]
[401088140,1767915043492,-500.0,0.00016438,2]
[401088141,1767915043501,-500.0,0.00016438,2]
[401088142,1767915043512,-972.0,0.00016438,2]
[401088143,1767915043522,-2195.8,0.00016438,2]
[401088144,1767915043531,-21354.92,0.00016438,2]
[401088145,1767915043542,-500.0,0.00016493,2]
[401088146,1767915043553,-500.0,0.00016493,2]
[401088147,1767915043563,-500.0,0.00016493,2]
[401088148,1767915043572,-500.0,0.00016493,2]
[401088149,1767915043581,-972.0,0.00016493,2]
[401088150,1767915043590,-500.0,0.00016547,2]
[401088151,1767915043599,-500.0,0.00016547,2]
[401088152,1767915043608,-500.0,0.00016547,2]
[401088153,1767915043617,-500.0,0.00016547,2]
[401088154,1767915043627,-972.0,0.00016547,2]
[401088155,1767915043636,-539.56119265,0.00016551,2]
[401088156,1767915043646,-327.36851874,0.00016551,2]
[401088157,1767915043655,-1015.15258093,0.00016551,2]
[401088158,1767915043664,-500.0,0.00016551,2]
[401088159,1767915043673,-3180.75325131,0.00016551,2]
[401088160,1767915043682,-500.0,0.00016551,2]
[401088161,1767915043692,-500.0,0.00016551,2]
[401088162,1767915043701,-500.0,0.00016551,2]
[401088163,1767915043710,-500.0,0.00016551,2]
[401088164,1767915043720,-500.0,0.00016551,2]
[401088165,1767915043729,-1949.15,0.00016559,2]
[401088166,1767915043739,-157.72323008,0.00016595,2]
[401088167,1767915043749,-500.0,0.00016602,2]
[401088168,1767915043758,-500.0,0.00016602,2]
[401088169,1767915043767,-500.0,0.00016602,2]
[401088170,1767915043776,-972.0,0.00016602,2]
[401088171,1767915043786,-500.0,0.00016657,2]
[401088172,1767915043795,-500.0,0.00016657,2]
[401088173,1767915043804,-500.0,0.00016657,2]
[401088174,1767915043813,-972.0,0.00016657,2]
[401088175,1767915043823,-189.97512683,0.00016712,2]
[401088176,1767915043832,-585.48487047,0.00016712,2]
[401088177,1767915043841,-500.0,0.00016712,2]
[401088178,1767915043851,-972.0,0.00016712,2]
[401088179,1767915043860,-2195.8,0.00016712,2]
[401088180,1767915043869,-165.16,0.00016712,2]
[401088181,1767915043878,-158.69212054,0.0001672,2]
[401088182,1767915043888,-500.0,0.00016767,2]
[401088183,1767915043897,-972.0,0.00016767,2]
[401088184,1767915043906,-208.22403406,0.00016821,2]
[401088185,1767915043915,-972.0,0.00016821,2]
[401088186,1767915043925,-469.50438451,0.00016841,2]
[401088187,1767915043934,-972.0,0.00016876,2]
[401088188,1767915043943,-275.45766541,0.00016889,2]
[401088189,1767915043952,-972.0,0.00016931,2]
[401088190,1767915043962,-972.0,0.00016986,2]
[401088191,1767915043971,-2195.8,0.00016986,2]
[401088192,1767915043980,-1998.22747762,0.00016989,2]
[401088193,1767915043989,-776.2285,0.00017,2]
[401088194,1767915043998,-250.0,0.00017,2]
[401088195,1767915044007,-160.0,0.00017,2]
[401088196,1767915044016,-3032.44949746,0.00017,2]
[401088197,1767915044026,-972.0,0.00017041,2]
[401088198,1767915044037,-5888.0,0.00017087,2]
[401088199,1767915044047,-972.0,0.00017095,2]
[401088200,1767915044056,-500.0,0.00017098,2]
[401088201,1767915044065,-151.0,0.00017099,2]
[401088202,1767915044075,-1500.0,0.00017099,2]
[401088203,1767915044087,-500.0,0.00017099,2]
[401088204,1767915044096,-1500.0,0.00017099,2]
[401088205,1767915044106,-166.77833559,0.00017099,2]
[401088206,1767915044116,-500.0,0.00017099,2]
[401088207,1767915044125,-1500.0,0.00017099,2]
[401088208,1767915044135,-500.0,0.00017099,2]
[401088209,1767915044144,-1500.0,0.00017099,2]
[401088210,1767915044153,-500.0,0.00017099,2]
[401088211,1767915044163,-1500.0,0.00017099,2]
[401088212,1767915044173,-500.0,0.00017099,2]
[401088213,1767915044182,-1500.0,0.00017099,2]
[401088214,1767915044191,-500.0,0.00017099,2]
[401088215,1767915044200,-1500.0,0.00017099,2]
[401088216,1767915044210,-500.0,0.00017099,2]
[401088217,1767915044219,-1500.0,0.00017099,2]
[401088218,1767915044228,-500.0,0.00017099,2]
[401088219,1767915044237,-1500.0,0.00017099,2]
[401088220,1767915044247,-500.0,0.00017099,2]
[401088221,1767915044256,-1500.0,0.00017099,2]
[401088222,1767915044265,-500.0,0.00017099,2]
[401088223,1767915044274,-496.48372017,0.00017099,2]
[401088224,1767915044284,-500.0,0.00017099,2]
[401088225,1767915044294,-500.0,0.00017099,2]
[401088226,1767915044304,-620.0,0.00017099,2]